[Event "Titled Tuesday Blitz June 13 Early 2023"]
[White "Srihari L R"]
[Black "Bodnaruk, Anastasia"]
[WhiteFideId "46617116"]
[BlackFideId "4181751"]
[WhiteElo "2334"]
[BlackElo "2304"]
[Result "1-0"]
[Round "9"]
[TimeControl "180+2"]
[Date "2023.06.13"]
[WhiteClock "0:01:19"]
[BlackClock "0:00:00"]
[Board "47"]

1. c4 {[%clk 0:03:00]}  e5 {[%clk 0:02:59]} 2. Nc3 {[%clk 0:03:00]}  d6 {[%clk 0:02:57]} 3. Nf3 {[%clk 0:02:57]}  f5 {[%clk 0:02:55]} 4. d4 {[%clk 0:02:56]}  e4 {[%clk 0:02:55]} 5. Ng5 {[%clk 0:02:55]}  Be7 {[%clk 0:02:55]} 6. h4 {[%clk 0:02:52]}  Nf6 {[%clk 0:02:40]} 7. g3 {[%clk 0:02:51]}  c6 {[%clk 0:02:24]} 8. Bg2 {[%clk 0:02:49]}  a5 {[%clk 0:02:13]} 9. O-O {[%clk 0:02:47]}  O-O {[%clk 0:02:07]} 10. Nh3 {[%clk 0:02:43]}  d5 {[%clk 0:01:55]} 11. cxd5 {[%clk 0:02:41]}  cxd5 {[%clk 0:01:55]} 12. Nf4 {[%clk 0:02:41]}  Nc6 {[%clk 0:01:53]} 13. Be3 {[%clk 0:02:38]}  Kh8 {[%clk 0:01:29]} 14. a3 {[%clk 0:02:33]}  Bd6 {[%clk 0:01:20]} 15. Ncxd5 {[%clk 0:02:18]}  Nxd5 {[%clk 0:01:20]} 16. Nxd5 {[%clk 0:02:18]}  Bxg3 {[%clk 0:01:20]} 17. fxg3 {[%clk 0:02:18]}  Qxd5 {[%clk 0:01:20]} 18. Rc1 {[%clk 0:02:19]}  b6 {[%clk 0:01:12]} 19. Qc2 {[%clk 0:02:11]}  Bd7 {[%clk 0:01:06]} 20. Qc4 {[%clk 0:02:07]}  Ne7 {[%clk 0:01:02]} 21. Bg5 {[%clk 0:02:04]}  Qxc4 {[%clk 0:01:00]} 22. Rxc4 {[%clk 0:02:04]}  Nd5 {[%clk 0:01:00]} 23. Rfc1 {[%clk 0:01:56]}  a4 {[%clk 0:00:49]} 24. e3 {[%clk 0:01:52]}  Rfc8 {[%clk 0:00:38]} 25. Bf1 {[%clk 0:01:46]}  Rxc4 {[%clk 0:00:32]} 26. Rxc4 {[%clk 0:01:43]}  Kg8 {[%clk 0:00:28]} 27. Kf2 {[%clk 0:01:31]}  Kf7 {[%clk 0:00:28]} 28. Rc1 {[%clk 0:01:28]}  Ke6 {[%clk 0:00:24]} 29. Bf4 {[%clk 0:01:23]}  b5 {[%clk 0:00:14]} 30. Be5 {[%clk 0:01:20]}  g6 {[%clk 0:00:09]} 31. Rc5 {[%clk 0:01:20]}  b4 {[%clk 0:00:09]} 32. Bc4 {[%clk 0:01:19]}  bxa3 {[%clk 0:00:04]} 33. Bxd5+ {[%clk 0:01:19]}  Ke7 {[%clk 0:00:00]} 34. bxa3 {[%clk 0:01:19]} 1-0


[Site "https://www.chess.com"]

[Event "Titled Tuesday Blitz June 13 Early 2023"]
[White "Itgelt, Khuyagtsogt"]
[Black "Portela Peleteiro, Alberto"]
[WhiteFideId "4902912"]
[BlackFideId "22276106"]
[WhiteElo "2227"]
[BlackElo "2353"]
[Result "1-0"]
[Round "9"]
[TimeControl "180+2"]
[Date "2023.06.13"]
[WhiteClock "0:00:37"]
[BlackClock "0:00:30"]
[Board "50"]

1. g3 {[%clk 0:03:00]}  g6 {[%clk 0:02:58]} 2. Bg2 {[%clk 0:02:59]}  Bg7 {[%clk 0:02:59]} 3. c3 {[%clk 0:03:00]}  Nf6 {[%clk 0:02:56]} 4. Qc2 {[%clk 0:03:00]}  O-O {[%clk 0:02:57]} 5. e4 {[%clk 0:03:01]}  d6 {[%clk 0:02:50]} 6. Ne2 {[%clk 0:02:59]}  e5 {[%clk 0:02:47]} 7. h3 {[%clk 0:02:59]}  Re8 {[%clk 0:02:44]} 8. d3 {[%clk 0:02:57]}  c6 {[%clk 0:02:43]} 9. O-O {[%clk 0:02:52]}  Nbd7 {[%clk 0:02:41]} 10. c4 {[%clk 0:02:50]}  b6 {[%clk 0:02:32]} 11. Nbc3 {[%clk 0:02:44]}  Bb7 {[%clk 0:02:32]} 12. b4 {[%clk 0:02:43]}  Qc7 {[%clk 0:02:21]} 13. Bb2 {[%clk 0:02:36]}  d5 {[%clk 0:02:13]} 14. cxd5 {[%clk 0:01:57]}  cxd5 {[%clk 0:02:14]} 15. Rac1 {[%clk 0:01:57]}  Rec8 {[%clk 0:02:04]} 16. Qb3 {[%clk 0:01:56]}  Qd6 {[%clk 0:01:18]} 17. exd5 {[%clk 0:01:50]}  Ba6 {[%clk 0:01:02]} 18. Rfd1 {[%clk 0:01:41]}  Ne8 {[%clk 0:00:59]} 19. Ne4 {[%clk 0:01:38]}  Qe7 {[%clk 0:00:58]} 20. a4 {[%clk 0:01:20]}  Kh8 {[%clk 0:00:55]} 21. b5 {[%clk 0:01:15]}  Bb7 {[%clk 0:00:55]} 22. Ba3 {[%clk 0:01:15]}  Nc5 {[%clk 0:00:47]} 23. Nxc5 {[%clk 0:01:13]}  bxc5 {[%clk 0:00:48]} 24. d4 {[%clk 0:00:46]}  exd4 {[%clk 0:00:44]} 25. Nxd4 {[%clk 0:00:46]}  Bxd4 {[%clk 0:00:39]} 26. Rxd4 {[%clk 0:00:46]}  cxd4 {[%clk 0:00:39]} 27. Bxe7 {[%clk 0:00:43]}  Rxc1+ {[%clk 0:00:39]} 28. Kh2 {[%clk 0:00:43]}  Re1 {[%clk 0:00:35]} 29. Qb4 {[%clk 0:00:39]}  Rc8 {[%clk 0:00:30]} 30. Qxe1 {[%clk 0:00:37]} 1-0


[Site "https://www.chess.com"]

[Event "Titled Tuesday Blitz June 13 Early 2023"]
[White "Ajay Karthikeyan"]
[Black "Arat, Ufuk Sezen"]
[WhiteFideId "35011685"]
[BlackFideId "6309089"]
[WhiteElo "2321"]
[BlackElo "2289"]
[Result "0-1"]
[Round "9"]
[TimeControl "180+2"]
[Date "2023.06.13"]
[WhiteClock "0:01:51"]
[BlackClock "0:00:47"]
[Board "51"]

1. Nf3 {[%clk 0:02:48]}  d5 {[%clk 0:02:59]} 2. d4 {[%clk 0:02:47]}  Nf6 {[%clk 0:02:59]} 3. Nc3 {[%clk 0:02:47]}  g6 {[%clk 0:03:00]} 4. Bg5 {[%clk 0:02:46]}  Ne4 {[%clk 0:02:59]} 5. h4 {[%clk 0:02:41]}  Bg7 {[%clk 0:02:57]} 6. e3 {[%clk 0:02:41]}  c5 {[%clk 0:02:50]} 7. Bd3 {[%clk 0:02:37]}  Nxg5 {[%clk 0:02:39]} 8. hxg5 {[%clk 0:02:37]}  cxd4 {[%clk 0:02:39]} 9. exd4 {[%clk 0:02:37]}  Nc6 {[%clk 0:02:39]} 10. Ne2 {[%clk 0:02:34]}  Bg4 {[%clk 0:02:39]} 11. c3 {[%clk 0:02:34]}  e5 {[%clk 0:02:34]} 12. Nxe5 {[%clk 0:02:31]}  Bxe5 {[%clk 0:02:13]} 13. dxe5 {[%clk 0:02:29]}  Qxg5 {[%clk 0:02:11]} 14. f4 {[%clk 0:02:27]}  Bxe2 {[%clk 0:02:01]} 15. fxg5 {[%clk 0:02:23]}  Bxd1 {[%clk 0:02:01]} 16. Rxd1 {[%clk 0:02:23]}  O-O-O {[%clk 0:01:58]} 17. O-O {[%clk 0:02:20]}  Nxe5 {[%clk 0:01:58]} 18. Be2 {[%clk 0:02:19]}  h6 {[%clk 0:01:50]} 19. gxh6 {[%clk 0:02:13]}  Rxh6 {[%clk 0:01:51]} 20. Rf6 {[%clk 0:02:13]}  Kc7 {[%clk 0:01:38]} 21. Rd4 {[%clk 0:02:08]}  Rhh8 {[%clk 0:01:29]} 22. Kf2 {[%clk 0:02:04]}  Rhe8 {[%clk 0:01:28]} 23. g4 {[%clk 0:01:59]}  Re6 {[%clk 0:01:26]} 24. g5 {[%clk 0:02:00]}  Rxf6+ {[%clk 0:01:25]} 25. gxf6 {[%clk 0:02:01]}  Rd6 {[%clk 0:01:25]} 26. Rf4 {[%clk 0:02:01]}  Nd7 {[%clk 0:01:25]} 27. Ke3 {[%clk 0:01:59]}  Rxf6 {[%clk 0:01:24]} 28. Ra4 {[%clk 0:01:59]}  Re6+ {[%clk 0:01:24]} 29. Kd2 {[%clk 0:01:59]}  Nc5 {[%clk 0:01:24]} 30. Rxa7 {[%clk 0:01:58]}  Kb8 {[%clk 0:01:01]} 31. Ra5 {[%clk 0:01:58]}  b6 {[%clk 0:01:01]} 32. Rb5 {[%clk 0:01:57]}  Kc7 {[%clk 0:01:02]} 33. Bf3 {[%clk 0:01:54]}  Ne4+ {[%clk 0:00:54]} 34. Kc2 {[%clk 0:01:53]}  Kc6 {[%clk 0:00:51]} 35. c4 {[%clk 0:01:53]}  dxc4 {[%clk 0:00:48]} 36. Re5 {[%clk 0:01:51]}  Rxe5 {[%clk 0:00:47]} 0-1


[Site "https://www.chess.com"]

[Event "Titled Tuesday Blitz June 13 Early 2023"]
[White "brm72"]
[Black "Agibileg, Uurtsaikh"]
[BlackFideId "4901606"]
[WhiteElo "2539"]
[BlackElo "2353"]
[Result "0-1"]
[Round "9"]
[TimeControl "180+2"]
[Date "2023.06.13"]
[WhiteClock "0:00:14"]
[BlackClock "0:00:57"]
[Board "53"]

1. e4 {[%clk 0:03:00]}  c5 {[%clk 0:02:51]} 2. Nf3 {[%clk 0:03:00]}  e6 {[%clk 0:02:48]} 3. d4 {[%clk 0:03:00]}  cxd4 {[%clk 0:02:48]} 4. Nxd4 {[%clk 0:03:01]}  Nc6 {[%clk 0:02:48]} 5. Nc3 {[%clk 0:03:01]}  a6 {[%clk 0:02:47]} 6. Nxc6 {[%clk 0:02:58]}  bxc6 {[%clk 0:02:47]} 7. Bd3 {[%clk 0:02:54]}  d5 {[%clk 0:02:46]} 8. O-O {[%clk 0:02:54]}  Nf6 {[%clk 0:02:46]} 9. Re1 {[%clk 0:02:52]}  Be7 {[%clk 0:02:46]} 10. e5 {[%clk 0:02:51]}  Nd7 {[%clk 0:02:46]} 11. Qg4 {[%clk 0:02:44]}  Kf8 {[%clk 0:02:44]} 12. Na4 {[%clk 0:02:30]}  h5 {[%clk 0:02:43]} 13. Qe2 {[%clk 0:02:11]}  g6 {[%clk 0:02:34]} 14. c4 {[%clk 0:02:10]}  Kg7 {[%clk 0:02:35]} 15. b3 {[%clk 0:02:02]}  Bb7 {[%clk 0:02:33]} 16. Bb2 {[%clk 0:01:42]}  h4 {[%clk 0:02:32]} 17. h3 {[%clk 0:01:41]}  Nc5 {[%clk 0:02:31]} 18. Nxc5 {[%clk 0:01:38]}  Bxc5 {[%clk 0:02:32]} 19. Qf3 {[%clk 0:01:28]}  a5 {[%clk 0:02:22]} 20. a3 {[%clk 0:01:19]}  Be7 {[%clk 0:02:11]} 21. Bc3 {[%clk 0:01:16]}  Qb6 {[%clk 0:02:10]} 22. Reb1 {[%clk 0:01:13]}  c5 {[%clk 0:02:10]} 23. cxd5 {[%clk 0:00:54]}  Bxd5 {[%clk 0:02:09]} 24. Be4 {[%clk 0:00:54]}  Rhd8 {[%clk 0:02:03]} 25. Rb2 {[%clk 0:00:34]}  Ra7 {[%clk 0:01:50]} 26. Rab1 {[%clk 0:00:33]}  Rad7 {[%clk 0:01:50]} 27. Bxd5 {[%clk 0:00:32]}  Rxd5 {[%clk 0:01:49]} 28. b4 {[%clk 0:00:28]}  cxb4 {[%clk 0:01:44]} 29. axb4 {[%clk 0:00:28]}  Rd3 {[%clk 0:01:40]} 30. bxa5 {[%clk 0:00:23]}  Qc7 {[%clk 0:01:17]} 31. Qb7 {[%clk 0:00:22]}  Rxc3 {[%clk 0:01:16]} 32. a6 {[%clk 0:00:20]}  Rc1+ {[%clk 0:01:11]} 33. Rxc1 {[%clk 0:00:13]}  Qxc1+ {[%clk 0:01:12]} 34. Kh2 {[%clk 0:00:14]}  Qf4+ {[%clk 0:01:12]} 35. g3 {[%clk 0:00:13]}  Qxe5 {[%clk 0:01:12]} 36. a7 {[%clk 0:00:13]}  Bd6 {[%clk 0:01:01]} 37. Rb3 {[%clk 0:00:11]}  hxg3+ {[%clk 0:00:59]} 38. fxg3 {[%clk 0:00:12]}  Qe2+ {[%clk 0:00:57]} 39. Qg2 {[%clk 0:00:13]}  Qxg2+ {[%clk 0:00:57]} 40. Kxg2 {[%clk 0:00:14]}  Ra8 {[%clk 0:00:57]} 41. Rb7 {[%clk 0:00:14]}  Bc5 {[%clk 0:00:57]} 0-1


[Site "https://www.chess.com"]

[Event "Titled Tuesday Blitz June 13 Early 2023"]
[White "Miranda, Rafael"]
[Black "Fernandez Siles, Luis"]
[WhiteFideId "130990"]
[BlackFideId "2209420"]
[WhiteElo "2204"]
[BlackElo "2195"]
[Result "1-0"]
[Round "9"]
[TimeControl "180+2"]
[Date "2023.06.13"]
[WhiteClock "0:01:18"]
[BlackClock "0:00:47"]
[Board "57"]

1. e4 {[%clk 0:03:00]}  c5 {[%clk 0:02:58]} 2. Nf3 {[%clk 0:03:00]}  Nc6 {[%clk 0:02:58]} 3. c3 {[%clk 0:03:01]}  Nf6 {[%clk 0:02:57]} 4. d3 {[%clk 0:03:01]}  d6 {[%clk 0:02:52]} 5. Be2 {[%clk 0:03:00]}  g6 {[%clk 0:02:53]} 6. O-O {[%clk 0:03:00]}  Bg7 {[%clk 0:02:53]} 7. Nbd2 {[%clk 0:03:01]}  O-O {[%clk 0:02:53]} 8. a3 {[%clk 0:03:01]}  a5 {[%clk 0:02:48]} 9. a4 {[%clk 0:03:01]}  Qc7 {[%clk 0:02:37]} 10. Re1 {[%clk 0:03:01]}  d5 {[%clk 0:02:35]} 11. Bf1 {[%clk 0:02:57]}  d4 {[%clk 0:02:25]} 12. cxd4 {[%clk 0:02:57]}  cxd4 {[%clk 0:02:23]} 13. Nc4 {[%clk 0:02:51]}  Be6 {[%clk 0:02:10]} 14. Na3 {[%clk 0:02:49]}  Bg4 {[%clk 0:01:55]} 15. h3 {[%clk 0:02:48]}  Bxf3 {[%clk 0:01:52]} 16. Qxf3 {[%clk 0:02:49]}  Nb4 {[%clk 0:01:52]} 17. Qd1 {[%clk 0:02:46]}  e5 {[%clk 0:01:46]} 18. Nc4 {[%clk 0:02:37]}  Nd7 {[%clk 0:01:43]} 19. Bg5 {[%clk 0:02:34]}  f6 {[%clk 0:01:40]} 20. Bd2 {[%clk 0:02:34]}  Kh8 {[%clk 0:01:40]} 21. Rc1 {[%clk 0:02:32]}  Nc5 {[%clk 0:01:37]} 22. Nxa5 {[%clk 0:02:00]}  Qxa5 {[%clk 0:01:27]} 23. Rc4 {[%clk 0:02:00]}  Nca6 {[%clk 0:01:23]} 24. Qb3 {[%clk 0:02:00]}  Nc5 {[%clk 0:01:03]} 25. Qxb4 {[%clk 0:01:56]}  Qxb4 {[%clk 0:01:02]} 26. Bxb4 {[%clk 0:01:55]}  b6 {[%clk 0:01:02]} 27. a5 {[%clk 0:01:52]}  Rfc8 {[%clk 0:00:51]} 28. axb6 {[%clk 0:01:48]}  Nb7 {[%clk 0:00:51]} 29. Rec1 {[%clk 0:01:41]}  Rcb8 {[%clk 0:00:52]} 30. Rc7 {[%clk 0:01:22]}  Bf8 {[%clk 0:00:47]} 31. Bxf8 {[%clk 0:01:18]} 1-0


[Site "https://www.chess.com"]

[Event "Titled Tuesday Blitz June 13 Early 2023"]
[White "Shuvalova, Polina"]
[Black "MKlose11"]
[WhiteFideId "24171760"]
[WhiteElo "2281"]
[BlackElo "2545"]
[Result "1-0"]
[Round "9"]
[TimeControl "180+2"]
[Date "2023.06.13"]
[WhiteClock "0:00:33"]
[BlackClock "0:00:01"]
[Board "61"]

1. e4 {[%clk 0:03:00]}  e6 {[%clk 0:02:51]} 2. d4 {[%clk 0:03:00]}  d5 {[%clk 0:02:32]} 3. exd5 {[%clk 0:03:01]}  exd5 {[%clk 0:02:30]} 4. Nf3 {[%clk 0:03:01]}  Nf6 {[%clk 0:02:30]} 5. Bd3 {[%clk 0:03:00]}  c5 {[%clk 0:02:31]} 6. O-O {[%clk 0:02:59]}  Be7 {[%clk 0:02:31]} 7. dxc5 {[%clk 0:02:59]}  O-O {[%clk 0:02:31]} 8. c3 {[%clk 0:02:58]}  Bxc5 {[%clk 0:02:31]} 9. Nbd2 {[%clk 0:02:58]}  Nc6 {[%clk 0:02:31]} 10. Nb3 {[%clk 0:02:59]}  Bb6 {[%clk 0:02:31]} 11. h3 {[%clk 0:02:58]}  Qd6 {[%clk 0:02:31]} 12. Bg5 {[%clk 0:02:52]}  h6 {[%clk 0:02:31]} 13. Bd2 {[%clk 0:02:36]}  Ne4 {[%clk 0:02:19]} 14. Nbd4 {[%clk 0:02:28]}  Re8 {[%clk 0:02:18]} 15. Be3 {[%clk 0:02:25]}  Bd7 {[%clk 0:02:14]} 16. Qc2 {[%clk 0:02:15]}  Rac8 {[%clk 0:02:12]} 17. Rfe1 {[%clk 0:02:06]}  Qf6 {[%clk 0:01:56]} 18. Nxc6 {[%clk 0:02:03]}  bxc6 {[%clk 0:01:24]} 19. Bxb6 {[%clk 0:02:01]}  axb6 {[%clk 0:01:25]} 20. Bxe4 {[%clk 0:01:59]}  Rxe4 {[%clk 0:01:25]} 21. Rxe4 {[%clk 0:01:58]}  Bf5 {[%clk 0:01:25]} 22. Rf4 {[%clk 0:01:20]}  Bxc2 {[%clk 0:01:23]} 23. Rxf6 {[%clk 0:01:21]}  gxf6 {[%clk 0:01:23]} 24. Rc1 {[%clk 0:01:20]}  Be4 {[%clk 0:01:22]} 25. Nd2 {[%clk 0:01:20]}  Bf5 {[%clk 0:01:20]} 26. Re1 {[%clk 0:01:18]}  Kf8 {[%clk 0:01:20]} 27. g4 {[%clk 0:01:16]}  Be6 {[%clk 0:01:13]} 28. Kg2 {[%clk 0:01:13]}  c5 {[%clk 0:01:13]} 29. b3 {[%clk 0:01:08]}  d4 {[%clk 0:00:56]} 30. c4 {[%clk 0:01:08]}  Bd7 {[%clk 0:00:40]} 31. a4 {[%clk 0:00:53]}  Bc6+ {[%clk 0:00:33]} 32. Kg3 {[%clk 0:00:53]}  Re8 {[%clk 0:00:25]} 33. Rxe8+ {[%clk 0:00:53]}  Bxe8 {[%clk 0:00:26]} 34. Ne4 {[%clk 0:00:48]}  Ke7 {[%clk 0:00:26]} 35. Kf4 {[%clk 0:00:48]}  Bc6 {[%clk 0:00:25]} 36. Ng3 {[%clk 0:00:49]}  Bg2 {[%clk 0:00:20]} 37. h4 {[%clk 0:00:47]}  Kf8 {[%clk 0:00:09]} 38. Nf5 {[%clk 0:00:46]}  Bf1 {[%clk 0:00:07]} 39. Nd6 {[%clk 0:00:32]}  Bd3 {[%clk 0:00:04]} 40. Nc8 {[%clk 0:00:32]}  Bc2 {[%clk 0:00:04]} 41. Nxb6 {[%clk 0:00:32]}  Bxb3 {[%clk 0:00:04]} 42. a5 {[%clk 0:00:33]}  Ke7 {[%clk 0:00:05]} 43. a6 {[%clk 0:00:33]}  Ba4 {[%clk 0:00:01]} 44. Nxa4 {[%clk 0:00:33]} 1-0


[Site "https://www.chess.com"]

[Event "Titled Tuesday Blitz June 13 Early 2023"]
[White "Csonka, Balazs"]
[Black "Toncheva, Nadya"]
[WhiteFideId "742910"]
[BlackFideId "2924056"]
[WhiteElo "2404"]
[BlackElo "2101"]
[Result "1/2-1/2"]
[Round "9"]
[TimeControl "180+2"]
[Date "2023.06.13"]
[WhiteClock "0:00:04"]
[BlackClock "0:00:13"]
[Board "62"]

1. e4 {[%clk 0:03:00]}  c5 {[%clk 0:03:00]} 2. Nf3 {[%clk 0:02:58]}  Nc6 {[%clk 0:03:01]} 3. Bb5 {[%clk 0:02:41]}  e6 {[%clk 0:03:01]} 4. Bxc6 {[%clk 0:02:38]}  bxc6 {[%clk 0:03:02]} 5. b3 {[%clk 0:02:37]}  d6 {[%clk 0:03:02]} 6. e5 {[%clk 0:02:36]}  d5 {[%clk 0:03:02]} 7. O-O {[%clk 0:02:31]}  Ne7 {[%clk 0:03:03]} 8. d3 {[%clk 0:02:19]}  Nf5 {[%clk 0:03:02]} 9. c4 {[%clk 0:02:14]}  Be7 {[%clk 0:03:03]} 10. Nc3 {[%clk 0:02:13]}  h5 {[%clk 0:03:03]} 11. Ba3 {[%clk 0:02:06]}  g5 {[%clk 0:03:03]} 12. Na4 {[%clk 0:02:04]}  g4 {[%clk 0:03:01]} 13. Nd2 {[%clk 0:01:56]}  Qa5 {[%clk 0:03:02]} 14. Re1 {[%clk 0:01:23]}  Bd7 {[%clk 0:03:01]} 15. Rc1 {[%clk 0:01:06]}  Rc8 {[%clk 0:03:00]} 16. Nf1 {[%clk 0:01:04]}  Nd4 {[%clk 0:02:55]} 17. Qd2 {[%clk 0:00:59]}  Qxd2 {[%clk 0:02:49]} 18. Nxd2 {[%clk 0:01:00]}  Bg5 {[%clk 0:02:49]} 19. Bxc5 {[%clk 0:00:43]}  Bxd2 {[%clk 0:02:48]} 20. Bxd4 {[%clk 0:00:43]}  Bxe1 {[%clk 0:02:46]} 21. Rxe1 {[%clk 0:00:43]}  c5 {[%clk 0:02:16]} 22. Nxc5 {[%clk 0:00:42]}  Bc6 {[%clk 0:02:16]} 23. Be3 {[%clk 0:00:28]}  dxc4 {[%clk 0:02:11]} 24. bxc4 {[%clk 0:00:20]}  Rb8 {[%clk 0:02:08]} 25. Nb3 {[%clk 0:00:19]}  a6 {[%clk 0:02:05]} 26. Bc5 {[%clk 0:00:19]}  h4 {[%clk 0:02:03]} 27. Bd6 {[%clk 0:00:20]}  Rb7 {[%clk 0:02:03]} 28. Re3 {[%clk 0:00:13]}  h3 {[%clk 0:02:01]} 29. gxh3 {[%clk 0:00:13]}  Rxh3 {[%clk 0:01:51]} 30. Rxh3 {[%clk 0:00:13]}  gxh3 {[%clk 0:01:51]} 31. f4 {[%clk 0:00:13]}  Ba4 {[%clk 0:01:46]} 32. Nc5 {[%clk 0:00:13]}  Rb1+ {[%clk 0:01:46]} 33. Kf2 {[%clk 0:00:13]}  Bc6 {[%clk 0:01:44]} 34. Nxa6 {[%clk 0:00:11]}  Rb2+ {[%clk 0:01:24]} 35. Kg3 {[%clk 0:00:11]}  Rxa2 {[%clk 0:01:25]} 36. Nb4 {[%clk 0:00:11]}  Rg2+ {[%clk 0:01:25]} 37. Kxh3 {[%clk 0:00:12]}  Bb7 {[%clk 0:01:25]} 38. d4 {[%clk 0:00:06]}  Rf2 {[%clk 0:01:22]} 39. Kg3 {[%clk 0:00:05]}  Rf3+ {[%clk 0:01:21]} 40. Kg4 {[%clk 0:00:05]}  Rf1 {[%clk 0:01:17]} 41. d5 {[%clk 0:00:05]}  exd5 {[%clk 0:01:15]} 42. Nxd5 {[%clk 0:00:04]}  Bc8+ {[%clk 0:00:56]} 43. Kg3 {[%clk 0:00:02]}  Rg1+ {[%clk 0:00:55]} 44. Kf2 {[%clk 0:00:02]}  Rc1 {[%clk 0:00:55]} 45. Ne3 {[%clk 0:00:02]}  Be6 {[%clk 0:00:54]} 46. f5 {[%clk 0:00:03]}  Bxc4 {[%clk 0:00:54]} 47. Kg3 {[%clk 0:00:02]}  Rc3 {[%clk 0:00:49]} 48. Kf4 {[%clk 0:00:03]}  Bb3 {[%clk 0:00:47]} 49. h4 {[%clk 0:00:02]}  Rc1 {[%clk 0:00:39]} 50. h5 {[%clk 0:00:02]}  Rh1 {[%clk 0:00:38]} 51. Kg5 {[%clk 0:00:03]}  f6+ {[%clk 0:00:22]} 52. exf6 {[%clk 0:00:01]}  Bf7 {[%clk 0:00:22]} 53. Bf4 {[%clk 0:00:01]}  Rxh5+ {[%clk 0:00:22]} 54. Kg4 {[%clk 0:00:02]}  Rh1 {[%clk 0:00:22]} 55. Bg5 {[%clk 0:00:02]}  Rg1+ {[%clk 0:00:21]} 56. Kf4 {[%clk 0:00:02]}  Kd7 {[%clk 0:00:19]} 57. Ng4 {[%clk 0:00:03]}  Rf1+ {[%clk 0:00:19]} 58. Ke5 {[%clk 0:00:02]}  Re1+ {[%clk 0:00:18]} 59. Kf4 {[%clk 0:00:02]}  Rf1+ {[%clk 0:00:19]} 60. Ke5 {[%clk 0:00:03]}  Re1+ {[%clk 0:00:19]} 61. Kd4 {[%clk 0:00:03]}  Ke8 {[%clk 0:00:16]} 62. Ne5 {[%clk 0:00:03]}  Rf1 {[%clk 0:00:14]} 63. Ke4 {[%clk 0:00:02]}  Re1+ {[%clk 0:00:13]} 64. Kf4 {[%clk 0:00:02]}  Rf1+ {[%clk 0:00:14]} 65. Ke4 {[%clk 0:00:03]}  Re1+ {[%clk 0:00:13]} 66. Kf4 {[%clk 0:00:03]}  Rf1+ {[%clk 0:00:13]} 67. Ke4 {[%clk 0:00:04]} 1/2-1/2


[Site "https://www.chess.com"]

[Event "Titled Tuesday Blitz June 13 Early 2023"]
[White "Ciorgovean, Iustin"]
[Black "Rastbod, Ali"]
[WhiteFideId "1242911"]
[BlackFideId "12567477"]
[WhiteElo "2186"]
[BlackElo "2281"]
[Result "0-1"]
[Round "9"]
[TimeControl "180+2"]
[Date "2023.06.13"]
[WhiteClock "0:00:05"]
[BlackClock "0:00:06"]
[Board "64"]

1. e4 {[%clk 0:02:56]}  Nc6 {[%clk 0:02:57]} 2. Nf3 {[%clk 0:02:52]}  d6 {[%clk 0:02:51]} 3. d4 {[%clk 0:02:52]}  Nf6 {[%clk 0:02:52]} 4. d5 {[%clk 0:02:50]}  Ne5 {[%clk 0:02:48]} 5. Nxe5 {[%clk 0:02:50]}  dxe5 {[%clk 0:02:49]} 6. Bb5+ {[%clk 0:02:49]}  Bd7 {[%clk 0:02:47]} 7. Qe2 {[%clk 0:02:49]}  g6 {[%clk 0:02:43]} 8. O-O {[%clk 0:02:46]}  Bg7 {[%clk 0:02:44]} 9. Bxd7+ {[%clk 0:02:40]}  Qxd7 {[%clk 0:02:43]} 10. c4 {[%clk 0:02:41]}  e6 {[%clk 0:02:42]} 11. Nc3 {[%clk 0:02:41]}  O-O {[%clk 0:02:43]} 12. Bg5 {[%clk 0:02:38]}  Nh5 {[%clk 0:02:42]} 13. Rfd1 {[%clk 0:02:34]}  Nf4 {[%clk 0:02:38]} 14. Qe1 {[%clk 0:02:29]}  h6 {[%clk 0:02:37]} 15. Bh4 {[%clk 0:02:28]}  g5 {[%clk 0:02:37]} 16. Bg3 {[%clk 0:02:28]}  c6 {[%clk 0:02:32]} 17. f3 {[%clk 0:02:14]}  exd5 {[%clk 0:02:22]} 18. cxd5 {[%clk 0:02:14]}  Rfd8 {[%clk 0:02:13]} 19. Bf2 {[%clk 0:02:07]}  g4 {[%clk 0:01:59]} 20. dxc6 {[%clk 0:01:54]}  Qxc6 {[%clk 0:01:58]} 21. fxg4 {[%clk 0:01:52]}  Qg6 {[%clk 0:01:57]} 22. h3 {[%clk 0:01:40]}  h5 {[%clk 0:01:57]} 23. Rxd8+ {[%clk 0:01:29]}  Rxd8 {[%clk 0:01:56]} 24. Bh4 {[%clk 0:01:30]}  Rd3 {[%clk 0:01:48]} 25. g5 {[%clk 0:01:25]}  Bf6 {[%clk 0:01:42]} 26. Rd1 {[%clk 0:01:14]}  Bxg5 {[%clk 0:01:39]} 27. Rxd3 {[%clk 0:01:12]}  Bxh4 {[%clk 0:01:35]} 28. Qf1 {[%clk 0:01:04]}  Nxd3 {[%clk 0:01:35]} 29. Qxd3 {[%clk 0:01:04]}  Qb6+ {[%clk 0:01:28]} 30. Kh2 {[%clk 0:00:53]}  Qxb2 {[%clk 0:01:27]} 31. Qf3 {[%clk 0:00:53]}  Qf2 {[%clk 0:01:17]} 32. Nb5 {[%clk 0:00:35]}  Qxf3 {[%clk 0:01:09]} 33. gxf3 {[%clk 0:00:36]}  a6 {[%clk 0:01:09]} 34. Nd6 {[%clk 0:00:36]}  b5 {[%clk 0:01:10]} 35. Kg2 {[%clk 0:00:36]}  Kf8 {[%clk 0:01:03]} 36. Kf1 {[%clk 0:00:35]}  Be7 {[%clk 0:01:03]} 37. Nf5 {[%clk 0:00:34]}  Bg5 {[%clk 0:01:01]} 38. Ke2 {[%clk 0:00:32]}  Ke8 {[%clk 0:00:59]} 39. Ng7+ {[%clk 0:00:32]}  Kd7 {[%clk 0:00:55]} 40. Nxh5 {[%clk 0:00:32]}  Kc6 {[%clk 0:00:54]} 41. Kd3 {[%clk 0:00:29]}  a5 {[%clk 0:00:52]} 42. Ng7 {[%clk 0:00:27]}  a4 {[%clk 0:00:52]} 43. Nf5 {[%clk 0:00:27]}  Kc5 {[%clk 0:00:51]} 44. h4 {[%clk 0:00:26]}  Bf6 {[%clk 0:00:52]} 45. h5 {[%clk 0:00:24]}  b4 {[%clk 0:00:52]} 46. h6 {[%clk 0:00:23]}  a3 {[%clk 0:00:52]} 47. Kc2 {[%clk 0:00:21]}  Kc4 {[%clk 0:00:53]} 48. Ne3+ {[%clk 0:00:21]}  Kd4 {[%clk 0:00:53]} 49. Nd5 {[%clk 0:00:21]}  Bh8 {[%clk 0:00:53]} 50. Nxb4 {[%clk 0:00:20]}  Ke3 {[%clk 0:00:53]} 51. Nd5+ {[%clk 0:00:14]}  Kxf3 {[%clk 0:00:54]} 52. Kd3 {[%clk 0:00:15]}  Kg4 {[%clk 0:00:52]} 53. Ne7 {[%clk 0:00:13]}  Bf6 {[%clk 0:00:49]} 54. h7 {[%clk 0:00:12]}  Kg5 {[%clk 0:00:47]} 55. Ng8 {[%clk 0:00:09]}  Bg7 {[%clk 0:00:46]} 56. Kc4 {[%clk 0:00:08]}  f5 {[%clk 0:00:46]} 57. exf5 {[%clk 0:00:08]}  Kxf5 {[%clk 0:00:47]} 58. Kd3 {[%clk 0:00:08]}  e4+ {[%clk 0:00:47]} 59. Ke2 {[%clk 0:00:09]}  Bd4 {[%clk 0:00:14]} 60. Ne7+ {[%clk 0:00:03]}  Kg5 {[%clk 0:00:14]} 61. Nc6 {[%clk 0:00:03]}  Bf6 {[%clk 0:00:10]} 62. Ne7 {[%clk 0:00:01]}  Bd4 {[%clk 0:00:03]} 63. Nd5 {[%clk 0:00:02]}  Kf5 {[%clk 0:00:01]} 64. h8=Q {[%clk 0:00:03]}  Bxh8 {[%clk 0:00:02]} 65. Nb6 {[%clk 0:00:03]}  Bd4 {[%clk 0:00:01]} 66. Nc4 {[%clk 0:00:03]}  Bb2 {[%clk 0:00:02]} 67. Nd2 {[%clk 0:00:04]}  Ke5 {[%clk 0:00:02]} 68. Nc4+ {[%clk 0:00:04]}  Kd4 {[%clk 0:00:03]} 69. Ne3 {[%clk 0:00:04]}  Kc3 {[%clk 0:00:03]} 70. Nd1+ {[%clk 0:00:04]}  Kc2 {[%clk 0:00:04]} 71. Ne3+ {[%clk 0:00:05]}  Kb1 {[%clk 0:00:04]} 72. Nc4 {[%clk 0:00:06]}  Kxa2 {[%clk 0:00:05]} 73. Kd2 {[%clk 0:00:06]}  Kb3 {[%clk 0:00:06]} 74. Na5+ {[%clk 0:00:06]}  Kb4 {[%clk 0:00:06]} 75. Nc6+ {[%clk 0:00:07]}  Kc5 {[%clk 0:00:06]} 76. Ne5 {[%clk 0:00:05]}  Bxe5 {[%clk 0:00:06]} 0-1


[Site "https://www.chess.com"]